Workbook

Sheet Semiautomated
A1: x | B1: y | C1: y = f(x) = a*x + b | E1: # data points | F1: Test input
A2: 0 | B2: 0 | C2: a | D2: b | E2: =COUNT(A:A) -> 7 | F2: 2.5
A3: 1 | B3: 9 | C3: =IF(A3<>"",(B3-B2)/(A3-A2),"") -> 9 | D3: =IF(A3<>"",B2-C3*A2,"") -> 0 | E3: Slope increasing? | F3: Minimax formula
A4: 2 | B4: 16 | C4: =IF(A4<>"",(B4-B3)/(A4-A3),"") -> 7 | D4: =IF(A4<>"",B3-C4*A3,"") -> 2 | E4: =AND(C3:INDEX(C:C,E2)<=C4:INDEX(C:C,E2+1)) -> FALSE | F4: =REPT("=MAX(F2*{"&sbCat(C3:INDEX(C:C,E2+1))&"}+{"&sbCat(D3:INDEX(D:D,E2+1))&"})",E4) -> 
A5: 3 | B5: 21 | C5: 5 | D5: 6 | E5: Slope decreasing? | F5: Minimax formula
A6: 4 | B6: 24 | C6: 3 | D6: 12 | E6: =AND(C3:INDEX(C:C,E2)>=C4:INDEX(C:C,E2+1)) -> TRUE | F6: =REPT("=MIN(F2*{"&sbCat(C3:INDEX(C:C,E2+1))&"}+{"&sbCat(D3:INDEX(D:D,E2+1))&"})",E6) -> =MIN(F2*{9,7,5,3,-2,-3}+{0,2,6,12,32,37})
A7: 5 | B7: 22 | C7: -2 | D7: 32 | F7: =REPT("No solution: slopes need to increase or to decrease monotonously!",NOT(E4+E6)) -> 
A8: 6 | B8: 19 | C8: -3 | D8: 37 | F8: Test output
F9: =IF(E4,sbEval(F4),IF(E6,sbEval(F6),"")) -> 18.5
F10: All-in-one with helper columns
F11: =IF(AND(C3:INDEX(C:C,COUNT(A:A))<=C4:INDEX(C:C,COUNT(A:A)+1)),"=MAX(F2*{"&sbCat(C3:INDEX(C:C,COUNT(A:A)+1))&"}+{"&sbCat(D3:INDEX(D:D,COUNT(A:A)+1))&"})",IF(AND(C3:INDEX(C:C,COUNT(A:A))>=C4:INDEX(C:C,COUNT(A:A)+1)),"=MIN(F2*{"&sbCat(C3:INDEX(C:C,COUNT(A:A)+1))&"}+{"&sbCat(D3:INDEX(D:D,COUNT(A:A)+1))&"})","No solution: slopes need to increase or to decrease monotonously!")) -> =MIN(F2*{9,7,5,3,-2,-3}+{0,2,6,12,32,37})
F12: All-in-one formula without helper columns
F13: =REPT("{",sbGetCell(F11,"IsArray"))&sbGetCell(F11,"ShowFormula")&REPT("}",sbGetCell(F11,"IsArray")) -> {=WENN(UND(C3:INDEX(C:C;ANZAHL(A:A))<=C4:INDEX(C:C;ANZAHL(A:A)+1));"=MAX(F2*{"&sbCat(C3:INDEX(C:C;ANZAHL(A:A)+1))&"}+{"&sbCat(D3:INDEX(D:D;ANZAHL(A:A)+1))&"})";WENN(UND(C3:INDEX(C:C;ANZAHL(A:A))>=C4:INDEX(C:C;ANZAHL(A:A)+1));"=MIN(F2*{"&sbCat(C3:INDEX(C:C;ANZAHL(A:A)+1))&"}+{"&sbCat(D3:INDEX(D:D;ANZAHL(A:A)+1))&"})";"No solution: slopes need to increase or to decrease monotonously!"))}
C68: =IF(A68<>"",(B68-B67)/(A68-A67),"") ->  | D68: =IF(A68<>"",B67-C68*A67,"") -> 
C132: =IF(A132<>"",(B132-B131)/(A132-A131),"") ->  | D132: =IF(A132<>"",B131-C132*A131,"") -> 
C196: =IF(A196<>"",(B196-B195)/(A196-A195),"") ->  | D196: =IF(A196<>"",B195-C196*A195,"") -> 
C260: =IF(A260<>"",(B260-B259)/(A260-A259),"") ->  | D260: =IF(A260<>"",B259-C260*A259,"") -> 
C324: =IF(A324<>"",(B324-B323)/(A324-A323),"") ->  | D324: =IF(A324<>"",B323-C324*A323,"") -> 
C388: =IF(A388<>"",(B388-B387)/(A388-A387),"") ->  | D388: =IF(A388<>"",B387-C388*A387,"") -> 
C452: =IF(A452<>"",(B452-B451)/(A452-A451),"") ->  | D452: =IF(A452<>"",B451-C452*A451,"") -> 
C516: =IF(A516<>"",(B516-B515)/(A516-A515),"") ->  | D516: =IF(A516<>"",B515-C516*A515,"") -> 
C580: =IF(A580<>"",(B580-B579)/(A580-A579),"") ->  | D580: =IF(A580<>"",B579-C580*A579,"") -> 
C644: =IF(A644<>"",(B644-B643)/(A644-A643),"") ->  | D644: =IF(A644<>"",B643-C644*A643,"") -> 
C708: =IF(A708<>"",(B708-B707)/(A708-A707),"") ->  | D708: =IF(A708<>"",B707-C708*A707,"") -> 
C749: =IF(A749<>"",(B749-B748)/(A749-A748),"") ->  | D749: =IF(A749<>"",B748-C749*A748,"") -> 
C813: =IF(A813<>"",(B813-B812)/(A813-A812),"") ->  | D813: =IF(A813<>"",B812-C813*A812,"") -> 
C877: =IF(A877<>"",(B877-B876)/(A877-A876),"") ->  | D877: =IF(A877<>"",B876-C877*A876,"") -> 
C941: =IF(A941<>"",(B941-B940)/(A941-A940),"") ->  | D941: =IF(A941<>"",B940-C941*A940,"") -> 

Sheet Sample
F2: f(x) = a*x + b
C3: x | D3: y | F3: a | G3: b | I3: Formula
C4: 0 | D4: 0
C5: 100000 | D5: 1100 | F5: =(D5-D4)/(C5-C4) -> 0.011 | G5: =D4-F5*C4 -> 0 | I5: =REPT("=MIN(C"&ROW()&"*{"&sbCat(F5:F9)&"}+{"&sbCat(G5:G9)&"})",AND(F5:F8>=F6:F9)) -> =MIN(C5*{0,011,0,007,0,0035,0,0025,0}+{0,400,1275,1775,3212,5})
C6: 250000 | D6: =D5+(C6-C5)*0.7% -> 2150 | F6: =(D6-D5)/(C6-C5) -> 0.007 | G6: =D5-F6*C5 -> 400 | I6: =REPT("=MAX(C"&ROW()&"*{"&sbCat(F5:F9)&"}+{"&sbCat(G5:G9)&"})",AND(F5:F8<=F6:F9)) -> 
C7: 500000 | D7: =D6+(C7-C6)*0.35% -> 3025 | F7: =(D7-D6)/(C7-C6) -> 0.0035 | G7: =D6-F7*C6 -> 1275 | I7: =IF(LEN(I5&I6),"","Slopes need to increase or to decrease monotonously!") -> 
C8: 575000 | D8: =D7+(C8-C7)*0.25% -> 3212.5 | F8: =(D8-D7)/(C8-C7) -> 0.0025 | G8: =D7-F8*C7 -> 1775
C9: 600000 | D9: =D8+(C9-C8)*0% -> 3212.5 | F9: =(D9-D8)/(C9-C8) -> 0 | G9: =D8-F9*C8 -> 3212.5
F12: f(x) = a*x + b
C13: x | D13: y | F13: a | G13: b | I13: Formula
C14: 0 | D14: 3
C15: 1 | D15: 0 | F15: =(D15-D14)/(C15-C14) -> -3 | G15: =D14-F15*C14 -> 3 | I15: =REPT("=MIN(C"&ROW()&"*{"&sbCat(F15:F19)&"}+{"&sbCat(G15:G19)&"})",AND(F15:F18>=F16:F19)) -> 
C16: 2 | D16: 3 | F16: =(D16-D15)/(C16-C15) -> 3 | G16: =D15-F16*C15 -> -3 | I16: =REPT("=MAX(C"&ROW()&"*{"&sbCat(F15:F19)&"}+{"&sbCat(G15:G19)&"})",AND(F15:F18<=F16:F19)) -> =MAX(C16*{-3,3,4,6,12}+{3,-3,-5,-11,-35})
C17: 3 | D17: 7 | F17: =(D17-D16)/(C17-C16) -> 4 | G17: =D16-F17*C16 -> -5 | I17: =IF(LEN(I15&I16),"","Slopes need to increase or to decrease monotonously!") -> 
C18: 4 | D18: 13 | F18: =(D18-D17)/(C18-C17) -> 6 | G18: =D17-F18*C17 -> -11
C19: 5 | D19: 25 | F19: =(D19-D18)/(C19-C18) -> 12 | G19: =D18-F19*C18 -> -35
F22: f(x) = a*x + b
C23: x | D23: y | F23: a | G23: b | I23: Formula
C24: 0 | D24: =-((C24-5)^2)+25 -> 0
C25: 1 | D25: 9 | F25: =(D25-D24)/(C25-C24) -> 9 | G25: =D24-F25*C24 -> 0 | I25: =REPT("=MIN(C"&ROW()&"*{"&sbCat(F25:F30)&"}+{"&sbCat(G25:G30)&"})",AND(F25:F29>=F26:F30)) -> =MIN(C25*{9,7,5,3,-2,-3}+{0,2,6,12,32,37})
C26: 2 | D26: 16 | F26: 7 | G26: 2 | I26: =REPT("=MAX(C"&ROW()&"*{"&sbCat(F25:F30)&"}+{"&sbCat(G25:G30)&"})",AND(F25:F29<=F26:F30)) -> 
C27: 3 | D27: 21 | F27: 5 | G27: 6 | I27: =IF(LEN(I25&I26),"","Slopes need to increase or to decrease monotonously!") -> 
C28: 4 | D28: 24 | F28: 3 | G28: 12
C29: 5 | D29: 22 | F29: -2 | G29: 32
C30: 6 | D30: 19 | F30: -3 | G30: 37
F34: f(x) = a*x + b
C35: x | D35: y | F35: a | G35: b | I35: Formula
C36: 0 | D36: 0
C37: 1 | D37: 2 | F37: =(D37-D36)/(C37-C36) -> 2 | G37: =D36-F37*C36 -> 0 | I37: =REPT("=MIN(C"&ROW()&"*{"&sbCat(F37:F42)&"}+{"&sbCat(G37:G42)&"})",AND(F37:F41>=F38:F42)*SIGN(AND(F37:F42>=0)+AND(F37:F42<=0))) -> 
C38: 2 | D38: 3 | F38: 1 | G38: 1 | I38: =REPT("=MAX(C"&ROW()&"*{"&sbCat(F37:F42)&"}+{"&sbCat(G37:G42)&"})",AND(F37:F41<=F38:F42)*SIGN(AND(F37:F42>=0)+AND(F37:F42<=0))) -> 
C39: 3 | D39: 5 | F39: 2 | G39: -1 | I39: =IF(LEN(I37&I38),"","Slopes need to increase or to decrease monotonously!") -> Slopes need to increase or to decrease monotonously!
C40: 4 | D40: 6 | F40: 1 | G40: 2
C41: 5 | D41: 7 | F41: 1 | G41: 2
C42: 6 | D42: =D41 -> 7 | F42: 0 | G42: 7
